bitfinex-derivatives/quotes_BTCF0:USTF0_20250823
["timestamp","ask_amount","ask_price","bid_price","bid_amount"]
[1755913677161,1.30051,116460.0,116450.0,1.52039218]
[1755913677467,1.30051,116460.0,116450.0,1.20723721]
[1755913677658,1.30051,116460.0,116450.0,1.52039218]
[1755913678068,1.29951,116460.0,116450.0,1.52039218]
[1755913678268,1.29951,116460.0,116450.0,1.52139218]
[1755913679569,1.29951,116460.0,116450.0,1.20823721]
[1755913681268,0.49191,116460.0,116450.0,1.20823721]
[1755913681473,1.08275,116460.0,116450.0,1.52139218]
[1755913681775,1.16897,116460.0,116450.0,1.20823721]
[1755913681962,1.16897,116460.0,116450.0,1.52139218]
[1755913683684,0.05311,116460.0,116450.0,1.52139218]
[1755913683968,0.49014,116470.0,116460.0,0.1756963]
[1755913684271,1.16269,116470.0,116460.0,1.01142794]
[1755913684660,1.16269,116470.0,116460.0,0.69827297]
[1755913684864,1.29762,116470.0,116460.0,0.5903763]
[1755913685065,1.29862,116470.0,116460.0,0.5903763]
[1755913686570,2.30926667,116470.0,116460.0,0.0858963]
[1755913687274,2.30826667,116470.0,116460.0,0.0858963]
[1755913687473,2.22237497,116470.0,116460.0,0.0858963]
[1755913687673,2.22237497,116470.0,116460.0,0.0868963]
[1755913688173,2.30826387,116470.0,116460.0,0.0868963]
[1755913688771,0.36266,116460.0,116450.0,0.26226502]
[1755913688969,1.03661497,116460.0,116450.0,0.15436835]
[1755913689483,1.03661497,116460.0,116450.0,0.28465835]
[1755913689673,1.03661497,116460.0,116450.0,0.33723835]
[1755913690061,1.12251127,116460.0,116450.0,0.15436835]
[1755913690266,1.37251127,116460.0,116450.0,0.15536835]
[1755913690672,1.28661497,116460.0,116450.0,0.15536835]
[1755913690872,1.28661497,116460.0,116450.0,0.15736835]
[1755913692375,0.3646837,116450.0,116440.0,0.19380547]
[1755913692576,2.1151894,116450.0,116440.0,0.03468547]
[1755913692775,0.0859136,116440.0,116430.0,0.0859138]
[1755913692977,0.75986857,116440.0,116430.0,0.0859138]
[1755913693578,0.75786857,116440.0,116430.0,0.2162038]
[1755913694079,0.75886857,116440.0,116430.0,0.2202038]
[1755913694278,0.75886857,116440.0,116430.0,0.2232038]
[1755913694875,0.76763742,116440.0,116430.0,0.2232038]
[1755913695382,0.001,116440.0,116430.0,1.52214877]
[1755913695582,0.001,116440.0,116430.0,1.60803359]
[1755913695775,0.82659073,116450.0,116440.0,0.5911911]
[1755913695976,0.01911073,116450.0,116440.0,1.26514607]
[1755913696578,0.01911073,116450.0,116440.0,1.35102352]
[1755913696782,0.80776,116460.0,116450.0,0.0859036]
[1755913696969,0.80776,116460.0,116450.0,1.26433857]
[1755913697370,0.80776,116460.0,116450.0,1.26513857]
[1755913697573,0.80776,116460.0,116450.0,1.35100864]
[1755913697984,0.80876,116460.0,116450.0,1.35100864]
[1755913698282,0.002,116460.0,116450.0,1.60100864]
[1755913699482,0.002,116460.0,116450.0,1.76404692]
[1755913699981,0.002,116460.0,116450.0,1.45089195]
[1755913700184,0.002,116460.0,116450.0,1.76404692]
[1755913700580,0.3608,116490.0,116480.0,0.5903615]
[1755913700885,1.16924,116490.0,116480.0,0.69831398]
[1755913701184,1.16924,116490.0,116480.0,1.01146895]
[1755913701375,0.3608,116500.0,116490.0,0.1481741]
[1755913701580,1.16864,116500.0,116490.0,0.4219241]
[1755913702482,1.1853719,116500.0,116490.0,0.4239241]
[1755913702879,1.1853719,116500.0,116490.0,0.3330441]
[1755913703085,1.83439357,116500.0,116490.0,0.2181641]
[1755913703982,1.74452687,116500.0,116490.0,0.2171641]
[1755913704181,1.74452687,116500.0,116490.0,0.2794641]
[1755913704382,1.73579497,116500.0,116490.0,0.3320441]
[1755913704581,1.73279497,116500.0,116490.0,0.3310441]
[1755913705786,1.74138452,116500.0,116490.0,0.3310441]
[1755913707187,1.73279497,116500.0,116490.0,0.3310441]
[1755913708782,1.41964,116500.0,116490.0,0.4201041]
[1755913708980,1.73279497,116500.0,116490.0,0.4201041]
[1755913709182,1.73279497,116500.0,116490.0,0.5849041]
[1755913709690,1.41964,116500.0,116490.0,0.5849041]
[1755913709884,1.2555067,116500.0,116490.0,0.5849041]
[1755913710185,1.81866167,116500.0,116490.0,0.0858741]
[1755913710686,0.0858741,116490.0,116480.0,0.15408371]
[1755913710884,0.77859338,116490.0,116480.0,0.15408371]
[1755913712190,0.46543841,116490.0,116480.0,0.15508371]
[1755913712380,0.77859338,116490.0,116480.0,0.15508371]
[1755913712581,0.46543841,116490.0,116480.0,0.15508371]
[1755913712786,0.77859338,116490.0,116480.0,0.28859371]
[1755913712982,0.77859338,116490.0,116480.0,0.15508371]
[1755913714090,0.75982907,116490.0,116480.0,0.15508371]
[1755913715590,0.75982907,116490.0,116480.0,0.28859371]
[1755913716895,1.00982907,116490.0,116480.0,0.15508881]
[1755913720591,1.00982907,116490.0,116480.0,0.28859881]
[1755913720891,1.26812907,116490.0,116480.0,0.28859881]
[1755913722192,0.9549741,116490.0,116480.0,0.28859881]
[1755913722391,1.26812907,116490.0,116480.0,0.28859881]
[1755913723486,0.9549741,116490.0,116480.0,0.28859881]
[1755913723687,1.26812907,116490.0,116480.0,0.28859881]
[1755913727398,0.6191,116490.0,116480.0,1.21369378]
[1755913727690,1.0655,116490.0,116480.0,1.21369378]
[1755913728086,1.0655,116490.0,116480.0,0.90053881]
[1755913728596,1.0655,116490.0,116480.0,0.90133881]
[1755913732591,0.8072,116490.0,116480.0,0.90133881]
[1755913733299,0.8072,116490.0,116480.0,1.21449378]
[1755913733699,0.8072,116490.0,116480.0,0.90053881]
[1755913734291,1.56702907,116490.0,116480.0,0.47559731]
[1755913734594,1.56702907,116490.0,116480.0,0.75849119]
[1755913734796,1.56702907,116490.0,116480.0,0.56465731]
[1755913735191,1.56702907,116490.0,116480.0,0.39836731]
[1755913735993,1.2538741,116490.0,116480.0,0.48424871]
[1755913736193,1.56702907,116490.0,116480.0,0.48424871]
[1755913736394,1.56702907,116490.0,116480.0,0.57330871]
[1755913737401,1.56702907,116490.0,116480.0,0.64881871]
[1755913737799,1.2538741,116490.0,116480.0,0.64881871]
[1755913737992,1.56702907,116490.0,116480.0,0.64881871]
[1755913739406,1.56702907,116490.0,116480.0,0.47387731]
[1755913739799,1.56702907,116490.0,116480.0,0.55948731]
[1755913740290,1.56702907,116490.0,116480.0,0.39836731]
[1755913740698,1.56702907,116490.0,116480.0,0.48397731]
[1755913740897,1.56702907,116490.0,116480.0,0.20271731]
[1755913741097,1.81702907,116490.0,116480.0,0.06920731]
[1755913742000,1.81702907,116490.0,116480.0,0.19407731]
[1755913742902,1.81702907,116490.0,116480.0,0.25105731]
[1755913743308,1.5038741,116490.0,116480.0,0.25105731]
[1755913743508,1.81702907,116490.0,116480.0,0.25105731]
[1755913743901,1.81702907,116490.0,116480.0,0.30349731]
[1755913744411,2.07532907,116490.0,116480.0,0.30349731]
[1755913744611,2.07532907,116490.0,116480.0,0.38343731]
[1755913744808,2.07532907,116490.0,116480.0,0.54455731]
[1755913745510,2.07532907,116490.0,116480.0,0.30349731]
[1755913745704,2.07532907,116490.0,116480.0,0.24651731]
[1755913746104,2.07532907,116490.0,116480.0,0.19407731]
[1755913749200,2.07532907,116490.0,116480.0,0.33693871]
[1755913749512,1.7621741,116490.0,116480.0,0.63043871]
[1755913749713,2.07532907,116490.0,116480.0,0.63043871]
[1755913750319,2.07532907,116490.0,116480.0,0.38937871]
[1755913750510,2.07532907,116490.0,116480.0,0.27995871]
[1755913751327,2.07532907,116490.0,116480.0,0.38937871]
[1755913751825,2.07532907,116490.0,116480.0,0.46931871]
[1755913752024,2.07532907,116490.0,116480.0,0.63043871]
[1755913752521,2.07532907,116490.0,116480.0,0.54482871]
[1755913752719,1.73913497,116490.0,116480.0,0.63043871]
[1755913753825,1.82500897,116490.0,116480.0,0.63043871]
[1755913757827,1.82500897,116490.0,116480.0,0.46931871]
[1755913758220,1.511854,116490.0,116480.0,0.63043871]
[1755913758416,1.82500897,116490.0,116480.0,0.63043871]
[1755913760626,1.511854,116490.0,116480.0,0.63043871]
[1755913760823,1.73913497,116490.0,116480.0,0.63043871]
[1755913761024,1.73913497,116490.0,116480.0,0.64339645]
[1755913761425,1.73913497,116490.0,116480.0,0.63043871]
[1755913761628,1.73913497,116490.0,116480.0,0.64339865]
[1755913763427,1.42598,116490.0,116480.0,0.64339865]
[1755913763626,1.73913497,116490.0,116480.0,0.75135113]
[1755913765223,1.42598,116490.0,116480.0,0.64339865]
[1755913765422,1.42598,116490.0,116480.0,0.89339865]
[1755913765623,1.42598,116490.0,116480.0,1.00135113]
[1755913765828,1.06518,116490.0,116480.0,1.00135113]
[1755913766828,1.06518,116490.0,116480.0,1.36215113]
[1755913767025,1.06518,116490.0,116480.0,1.36295113]
[1755913767231,0.3608,116500.0,116490.0,0.561454]
[1755913767433,0.80908,116500.0,116490.0,0.66958612]
[1755913767734,0.80908,116500.0,116490.0,0.68254713]
[1755913768035,0.80908,116500.0,116490.0,0.68254683]
[1755913768232,0.80908,116500.0,116490.0,1.04334683]
[1755913768532,0.81108,116500.0,116490.0,1.29334683]
[1755913769434,0.81108,116500.0,116490.0,0.93254683]
[1755913769640,0.81492893,116510.0,116500.0,0.5614466]
[1755913769838,0.81492893,116510.0,116500.0,1.04333943]
[1755913770336,0.81492893,116510.0,116500.0,1.12918002]
[1755913770730,0.81592893,116510.0,116500.0,1.12918002]
[1755913771136,0.81592893,116510.0,116500.0,1.0210479]
[1755913771433,0.81492893,116510.0,116500.0,1.12918002]
[1755913771733,0.81492893,116510.0,116500.0,0.95908943]
[1755913771928,1.4888839,116510.0,116500.0,0.49215731]
[1755913772431,1.26158833,116510.0,116500.0,0.57740731]
[1755913772629,1.4888839,116510.0,116500.0,0.57740731]
[1755913773537,1.17572893,116510.0,116500.0,0.57740731]
[1755913774625,0.81492893,116510.0,116500.0,0.57740731]
[1755913775741,0.81552893,116510.0,116500.0,0.57740731]
[1755913776235,0.81552893,116510.0,116500.0,0.93820731]
[1755913776439,0.81552893,116510.0,116500.0,0.9252466]
[1755913776737,0.81552893,116510.0,116500.0,1.25157166]
[1755913777131,0.81552893,116510.0,116500.0,0.93841651]
[1755913777928,0.81552893,116510.0,116500.0,0.14263991]
[1755913777929,1.4653434,116510.0,116500.0,0.14263991]
[1755913778238,1.8261434,116510.0,116500.0,0.01616991]
[1755913779142,1.51298843,116510.0,116500.0,0.10203691]
[1755913779438,1.8261434,116510.0,116500.0,0.22650691]
[1755913780228,1.51218843,116510.0,116500.0,0.22650691]
[1755913780437,1.8263434,116510.0,116500.0,0.22550691]
[1755913780636,1.8263434,116510.0,116500.0,0.270837]
[1755913780841,1.8263434,116510.0,116500.0,0.320957]
[1755913783255,1.8263434,116510.0,116500.0,0.406207]
[1755913783745,1.8263434,116510.0,116500.0,0.320957]
[1755913785240,1.5763434,116510.0,116500.0,0.12647]
[1755913785438,0.10529001,116500.0,116490.0,0.12659893]
[1755913785634,0.77924498,116500.0,116490.0,0.12659893]
[1755913786045,0.77924498,116500.0,116490.0,0.00012893]
[1755913786643,0.77924498,116500.0,116490.0,0.00212893]
[1755913786846,1.02924498,116500.0,116490.0,0.00212893]
[1755913787047,1.34239995,116500.0,116490.0,0.00212893]
[1755913787246,1.02924498,116500.0,116490.0,0.00212893]
[1755913787648,1.34239995,116500.0,116490.0,0.00312893]
[1755913796754,0.71609001,116500.0,116490.0,0.00312893]
[1755913796950,1.34239995,116500.0,116490.0,0.00312893]
[1755913797552,1.09239995,116500.0,116490.0,0.00312893]
[1755913799565,2.72491995,116500.0,116490.0,0.00312893]
[1755913799766,2.72491995,116500.0,116480.0,0.12647]
[1755913799767,0.0858744,116490.0,116480.0,0.12647]
[1755913799957,0.0858744,116490.0,116470.0,0.2273]
[1755913799958,0.0858818,116480.0,116470.0,0.2273]
[1755913800154,0.75983677,116480.0,116470.0,0.2273]
[1755913800554,0.0858965,116460.0,116450.0,0.59954222]
[1755913800761,1.21233147,116460.0,116450.0,0.65735222]
[1755913800959,1.21033147,116460.0,116450.0,0.65735222]
[1755913801363,1.21033147,116460.0,116450.0,0.72687578]
[1755913801560,0.8971765,116460.0,116450.0,0.72687578]
[1755913801863,1.20733147,116460.0,116450.0,0.72687578]
[1755913802253,1.56813147,116460.0,116450.0,0.64097568]
[1755913802465,1.56813147,116460.0,116450.0,0.53284356]
[1755913802766,1.57013147,116460.0,116450.0,0.54084356]
[1755913803566,1.56913147,116460.0,116450.0,0.19247356]
[1755913803766,1.58949995,116460.0,116450.0,0.19447356]
[1755913805064,1.27634498,116460.0,116450.0,0.25228356]
[1755913805268,1.58949995,116460.0,116450.0,0.30282356]
[1755913805471,1.59829354,116460.0,116450.0,0.38806356]
[1755913805777,1.59829354,116460.0,116450.0,0.53884356]
[1755913807367,1.59829354,116460.0,116450.0,0.45360356]
[1755913807562,1.59829354,116460.0,116450.0,0.53884356]
[1755913807869,1.59829354,116460.0,116450.0,0.62474686]
[1755913809068,1.19544848,116460.0,116450.0,0.87554686]
[1755913810068,0.83464848,116460.0,116450.0,0.87554686]
[1755913810976,0.92054448,116460.0,116450.0,0.87474686]
[1755913811162,1.28134448,116460.0,116450.0,0.87474686]
[1755913812575,1.59449945,116460.0,116450.0,0.78884356]
[1755913812768,1.59449945,116460.0,116450.0,0.53884356]
[1755913813161,1.59449945,116460.0,116450.0,0.45360356]
[1755913813775,1.59449945,116460.0,116450.0,0.53884356]
[1755913815973,1.59449945,116460.0,116450.0,0.45360356]
[1755913816171,1.59449945,116460.0,116450.0,0.53884356]
[1755913818273,1.59449945,116460.0,116450.0,0.45360356]
[1755913818476,1.59449945,116460.0,116450.0,0.38390356]
[1755913821278,1.59449945,116460.0,116450.0,0.46914356]
[1755913821581,1.57513097,116460.0,116450.0,0.46914356]
[1755913821877,1.82513097,116460.0,116450.0,0.19447356]
[1755913822383,1.82513097,116460.0,116450.0,0.07552356]
[1755913824976,1.84391611,116460.0,116450.0,0.07552356]
[1755913825279,1.84391611,116460.0,116450.0,0.006]
[1755913825789,0.0859034,116450.0,116440.0,0.11895]
[1755913826078,2.70593334,116450.0,116440.0,0.11895]
[1755913827278,2.71093334,116450.0,116440.0,0.11995]
[1755913828581,2.71593334,116450.0,116440.0,0.12095]
[1755913830084,2.97423334,116450.0,116440.0,0.12095]
[1755913831676,2.97423334,116450.0,116440.0,0.002]
[1755913832279,2.3479234,116450.0,116440.0,0.12048]
[1755913832476,2.97423334,116450.0,116440.0,0.12048]
[1755913834977,2.71593334,116450.0,116440.0,0.12048]
[1755913838589,0.0859103,116440.0,116430.0,0.11848]
[1755913838782,0.1654476,116430.0,116420.0,0.33334]
[1755913838987,0.93820257,116430.0,116420.0,0.40158929]
[1755913840483,0.94220257,116430.0,116420.0,0.40258929]
[1755913840988,0.94220257,116430.0,116420.0,0.52106929]
[1755913841688,0.6290476,116430.0,116420.0,0.52106929]
[1755913841888,0.94220257,116430.0,116420.0,0.52106929]
[1755913842388,0.94520257,116430.0,116420.0,0.52206929]
[1755913844691,0.94520257,116430.0,116420.0,0.60799419]
[1755913845593,0.85928497,116430.0,116420.0,0.60799419]
[1755913847197,0.94520247,116430.0,116420.0,0.60799419]
[1755913847393,0.84640247,116430.0,116420.0,0.60799419]
[1755913849901,0.94520247,116430.0,116420.0,0.60799419]
[1755913851300,0.94520247,116430.0,116420.0,0.36579929]
[1755913851698,0.94520247,116430.0,116420.0,0.52206929]
[1755913854695,0.94520247,116430.0,116420.0,0.60799429]
[1755913859296,0.94520247,116430.0,116420.0,0.60689429]
[1755913860204,0.94520247,116430.0,116420.0,0.52096929]
[1755913861700,0.94520247,116430.0,116420.0,0.60689419]
[1755913862909,0.94520247,116430.0,116420.0,0.48777419]
[1755913865302,0.6320475,116430.0,116420.0,0.48777419]
[1755913865506,0.94520247,116430.0,116420.0,0.48777419]
[1755913865906,0.84640247,116430.0,116420.0,0.48777419]
[1755913866106,1.65544247,116430.0,116420.0,0.48777419]
[1755913866508,1.56952497,116430.0,116420.0,0.48777419]
[1755913866703,1.1768,116430.0,116420.0,0.73857419]
[1755913866910,0.3678,116430.0,116420.0,0.84670631]
[1755913867211,1.1768,116430.0,116420.0,0.84670631]
[1755913868408,1.1768,116430.0,116420.0,0.84590631]
[1755913868608,1.57587257,116430.0,116420.0,0.84590631]
[1755913869713,1.48995497,116430.0,116420.0,0.84590631]
[1755913870110,1.48995497,116430.0,116420.0,0.73777419]
[1755913870613,1.57587257,116430.0,116420.0,0.73777419]
[1755913871511,1.1768,116430.0,116420.0,0.73777419]
[1755913871717,1.48995497,116430.0,116420.0,0.73777419]
[1755913871921,1.12915497,116430.0,116420.0,0.73777419]
[1755913872114,1.48995497,116430.0,116420.0,0.73777419]
[1755913873429,1.57587257,116430.0,116420.0,0.73777419]
[1755913874329,1.2627176,116430.0,116420.0,0.73777419]
[1755913874522,1.57587257,116430.0,116420.0,0.73777419]
[1755913875121,1.2627176,116430.0,116420.0,0.73777419]
[1755913875321,1.57587257,116430.0,116420.0,0.73777419]
[1755913876126,1.57587257,116430.0,116420.0,0.84590631]
[1755913876727,1.2627176,116430.0,116420.0,0.84590631]
[1755913877030,1.1768,116430.0,116420.0,0.73777419]
[1755913878626,1.57587257,116430.0,116420.0,0.73777419]
[1755913879136,1.12915497,116430.0,116420.0,0.73777419]
[1755913879335,1.21100497,116430.0,116420.0,0.73777419]
[1755913880235,1.57180497,116430.0,116420.0,0.84590631]
[1755913880533,1.65772257,116430.0,116420.0,0.84590631]
[1755913880735,0.89785,116430.0,116420.0,0.84590631]
[1755913880935,0.81592,116430.0,116420.0,0.90906128]
[1755913881126,0.81592,116430.0,116420.0,0.64221746]
[1755913882035,0.81592,116430.0,116420.0,0.48777419]
[1755913882731,0.81592,116430.0,116420.0,0.84857419]
[1755913882925,0.00012893,116440.0,116430.0,0.2251176]
[1755913883124,0.80900893,116440.0,116430.0,1.09569257]
[1755913883738,0.80900893,116440.0,116430.0,1.18158477]
[1755913884638,0.81100893,116440.0,116430.0,1.18258477]
[1755913884935,0.81100893,116440.0,116430.0,1.33686253]
[1755913885133,0.63812893,116440.0,116430.0,1.59541975]
[1755913885333,0.82808023,116450.0,116440.0,0.0859102]
[1755913885537,0.82808023,116450.0,116440.0,0.7825302]
[1755913885732,0.07718023,116450.0,116440.0,1.49996293]
[1755913885938,0.01924023,116450.0,116440.0,1.49996293]
[1755913886138,0.88556514,116460.0,116450.0,0.4217228]
[1755913886333,0.88556514,116460.0,116450.0,0.7825228]
[1755913886636,1.05049514,116460.0,116450.0,0.93680056]
[1755913887038,1.16094514,116460.0,116450.0,0.93680056]
[1755913887440,1.92079561,116460.0,116450.0,0.49268056]
[1755913887641,2.17079561,116460.0,116450.0,0.31719284]
[1755913888135,2.17079561,116460.0,116450.0,0.16291508]
[1755913888444,2.17379561,116460.0,116450.0,0.1398828]
[1755913888645,2.17879561,116460.0,116450.0,0.1408828]
[1755913888838,2.09290011,116460.0,116450.0,0.4048928]
[1755913889046,1.53078514,116460.0,116450.0,0.4048928]
[1755913889236,1.92983561,116460.0,116450.0,0.40318855]
[1755913889543,2.17983561,116460.0,116450.0,0.16390855]
[1755913889737,2.18063561,116460.0,116450.0,0.07800575]
[1755913889937,1.93063561,116460.0,116450.0,0.07800575]
[1755913890141,2.18063561,116460.0,116450.0,0.07800575]
[1755913890936,2.17983561,116460.0,116450.0,0.16390855]
[1755913891147,1.16998514,116460.0,116450.0,0.40318855]
[1755913891447,1.16998514,116460.0,116450.0,0.51270718]
[1755913891838,1.16998514,116460.0,116450.0,0.48188223]
[1755913893046,1.53078514,116460.0,116450.0,0.48188223]
[1755913893238,1.16998514,116460.0,116450.0,0.48188223]
[1755913893433,1.53078514,116460.0,116450.0,0.48188223]
[1755913893649,1.92983601,116460.0,116450.0,0.40317223]
[1755913893944,1.92983601,116460.0,116450.0,0.21787223]
[1755913895042,1.92983601,116460.0,116450.0,0.1408828]
[1755913895239,1.84394011,116460.0,116450.0,0.2520428]
[1755913895444,1.92983601,116460.0,116450.0,0.0869028]
[1755913895834,1.84394011,116460.0,116450.0,0.1408828]
[1755913896039,1.84394011,116460.0,116450.0,0.2520428]
[1755913896243,1.84394011,116460.0,116450.0,0.3307528]
[1755913896437,1.53078514,116460.0,116450.0,0.4048928]
[1755913899250,1.53078514,116460.0,116450.0,0.51270718]
[1755913899442,0.63790514,116460.0,116450.0,0.51270718]
[1755913899642,1.53523514,116460.0,116450.0,0.4819043]
[1755913900549,1.17443514,116460.0,116450.0,0.4819043]
[1755913903248,1.17443514,116460.0,116450.0,0.4048928]
[1755913904151,1.17443514,116460.0,116450.0,0.51270718]
[1755913905354,1.17443514,116460.0,116450.0,0.4048928]
[1755913907043,1.53523514,116460.0,116450.0,0.4048928]
[1755913907244,1.17443514,116460.0,116450.0,0.4048928]
[1755913910555,1.17143514,116460.0,116450.0,0.51270718]
[1755913910752,1.17243514,116460.0,116450.0,0.51270718]
[1755913911254,1.17243514,116460.0,116450.0,0.52549974]
[1755913911553,1.16743514,116460.0,116450.0,0.52449974]
[1755913911855,1.17243514,116460.0,116450.0,0.52549974]
[1755913912153,1.17243514,116460.0,116450.0,0.41768536]
[1755913912540,1.17243514,116460.0,116450.0,0.52549974]
[1755913913953,1.17243514,116460.0,116450.0,0.5255059]
[1755913919458,1.17243514,116460.0,116450.0,0.41769152]
[1755913919853,1.17243514,116460.0,116450.0,0.4048928]
[1755913920056,1.17243514,116460.0,116450.0,0.41759905]
[1755913920453,1.84639011,116460.0,116450.0,0.20779894]
[1755913920750,1.84639011,116460.0,116450.0,0.20779915]
[1755913920957,1.84639011,116460.0,116450.0,0.24678149]
[1755913921149,1.53323514,116460.0,116450.0,0.24678149]
[1755913921355,1.53323514,116460.0,116450.0,0.44282149]
[1755913921557,1.53323514,116460.0,116450.0,0.52234149]
[1755913922254,1.52903514,116460.0,116450.0,0.52234149]
[1755913922453,1.16823514,116460.0,116450.0,0.52234149]
[1755913922755,1.16823514,116460.0,116450.0,0.4141528]
[1755913922953,1.16823514,116460.0,116450.0,0.5329528]
[1755913924960,1.16823514,116460.0,116450.0,0.64114687]
[1755913925557,1.16823514,116460.0,116450.0,0.5329528]
[1755913925953,0.27510514,116460.0,116450.0,0.5329528]
[1755913926153,1.05206304,116460.0,116450.0,1.54277784]
[1755913926352,0.72244745,116460.0,116450.0,1.54277784]
[1755913926754,0.72244745,116460.0,116450.0,1.65574258]
[1755913927062,0.77948745,116460.0,116450.0,1.81002034]
[1755913927263,0.85741745,116460.0,116450.0,1.81002034]
[1755913928663,0.93439745,116460.0,116450.0,1.81002034]
[1755913929367,0.93439745,116460.0,116450.0,1.65574258]
[1755913930248,1.04966745,116460.0,116450.0,1.65574258]
[1755913930453,1.04966745,116460.0,116450.0,1.26306761]
[1755913930656,1.04966745,116460.0,116450.0,1.34258761]
[1755913930860,1.04966745,116460.0,116450.0,1.34458761]
[1755913931264,1.04966745,116460.0,116450.0,1.34358761]
[1755913931462,1.04966745,116460.0,116450.0,1.34458761]
[1755913932261,1.04966745,116460.0,116450.0,1.34258761]
[1755913932462,1.05066745,116460.0,116450.0,1.34258761]
[1755913933053,1.05166745,116460.0,116450.0,1.34258761]
[1755913933258,1.05805,116470.0,116460.0,0.2599161]
[1755913933459,1.13598,116470.0,116460.0,0.8927461]
[1755913933963,1.13598,116470.0,116460.0,0.2594861]
[1755913934166,1.13598,116470.0,116460.0,0.0858961]
[1755913934459,1.13598,116470.0,116460.0,0.4578061]
[1755913934664,1.13698,116470.0,116460.0,0.5319461]
[1755913935565,1.13798,116470.0,116460.0,0.5319461]
[1755913937158,1.13798,116470.0,116460.0,0.8927461]
[1755913937364,1.13798,116470.0,116460.0,1.00086817]
[1755913937558,1.02271,116470.0,116460.0,1.00086817]
[1755913937760,1.13798,116470.0,116460.0,1.00086817]
[1755913938156,0.8668,116470.0,116460.0,1.31402314]
[1755913938461,0.8668,116470.0,116460.0,1.54176377]
[1755913938861,0.80976,116470.0,116460.0,1.54176377]
[1755913939456,1.1499,116480.0,116470.0,0.5319392]
[1755913939661,1.1499,116480.0,116470.0,0.84509417]
[1755913940562,0.9567,116480.0,116470.0,1.2917495]
[1755913940969,1.03463,116480.0,116470.0,1.44611728]
[1755913941163,1.03463,116480.0,116470.0,1.45491228]
[1755913941368,0.9567,116480.0,116470.0,1.46783786]
[1755913941569,0.05704,116480.0,116470.0,1.46783786]
[1755913941769,0.82212,116480.0,116470.0,1.31347008]
[1755913942070,0.87916,116480.0,116470.0,1.46774148]
[1755913942265,0.87916,116480.0,116470.0,1.4548159]
[1755913942472,0.95709,116480.0,116470.0,1.46764084]
[1755913942666,1.03407,116480.0,116470.0,1.31336944]
[1755913943271,1.03407,116480.0,116470.0,1.00021447]
[1755913943467,1.03407,116480.0,116470.0,1.30457444]
[1755913943973,1.14934,116480.0,116470.0,1.30457444]
[1755913944271,1.14934,116480.0,116470.0,0.99141947]
[1755913945874,1.14934,116480.0,116470.0,1.30457444]
[1755913946077,1.14934,116480.0,116470.0,0.99141312]
[1755913946263,1.14934,116480.0,116470.0,1.30456809]
[1755913946466,1.14934,116480.0,116470.0,1.4124644]
[1755913946763,1.14934,116480.0,116470.0,1.41246332]
[1755913947782,1.03407,116480.0,116470.0,1.41246332]
[1755913948072,1.03407,116480.0,116470.0,1.30456701]
[1755913948376,1.14278,116480.0,116470.0,1.30456701]
[1755913949173,1.14278,116480.0,116470.0,0.99141204]
[1755913949978,1.03407,116480.0,116470.0,0.99141204]
[1755913950171,1.03407,116480.0,116470.0,1.30456701]
[1755913950669,1.05657,116490.0,116480.0,0.0858818]
[1755913950869,1.02912,116490.0,116480.0,1.08206212]
[1755913951070,0.12422,116500.0,116490.0,0.2583729]
[1755913951265,1.12261,116500.0,116490.0,1.32548959]
[1755913951970,1.12261,116500.0,116490.0,1.30345648]
[1755913952171,1.12261,116500.0,116490.0,0.99030151]
[1755913952477,0.94103,116500.0,116490.0,0.90573393]
[1755913952677,0.94403,116500.0,116490.0,0.90573393]
[1755913953272,0.94103,116500.0,116490.0,0.90573393]
[1755913953474,0.94103,116500.0,116490.0,0.79790151]
[1755913953874,0.94103,116500.0,116490.0,0.71456151]
[1755913954076,0.94103,116500.0,116490.0,0.71204618]
[1755913954969,0.94103,116500.0,116490.0,0.1972823]
[1755913955169,1.50418497,116500.0,116490.0,0.0986823]
[1755913955471,1.95085207,116500.0,116490.0,0.0986823]
[1755913955776,1.86498497,116500.0,116490.0,0.0986823]
[1755913956476,1.86598497,116500.0,116490.0,0.0986823]
[1755913956670,1.86598497,116500.0,116490.0,0.20651472]
[1755913957176,1.86798497,116500.0,116490.0,0.20651472]
[1755913957977,1.86798497,116500.0,116490.0,0.09868544]
[1755913958176,1.86998497,116500.0,116490.0,0.09868544]
[1755913958377,1.55683,116500.0,116490.0,0.14968544]
[1755913958579,1.55683,116500.0,116490.0,0.19728544]
[1755913958780,1.86998497,116500.0,116490.0,0.19728544]
[1755913959170,1.55683,116500.0,116490.0,0.19728544]
[1755913959479,1.86998497,116500.0,116490.0,0.19728544]
[1755913960079,1.86998497,116500.0,116490.0,0.09868544]
[1755913961276,1.70585207,116500.0,116490.0,0.09868544]
[1755913961579,1.3926971,116500.0,116490.0,0.09868544]
[1755913961778,1.70585207,116500.0,116490.0,0.09868544]
[1755913961980,1.95585207,116500.0,116490.0,0.09868544]
[1755913963279,1.55683,116500.0,116490.0,0.09868544]
[1755913963470,1.86998497,116500.0,116490.0,0.09868544]
[1755913963881,1.55683,116500.0,116490.0,0.09868544]
[1755913964087,1.86998497,116500.0,116490.0,0.14629486]
[1755913964483,1.86998497,116500.0,116490.0,0.19729486]
[1755913964677,1.55683,116500.0,116490.0,0.19729756]
[1755913964880,1.86998497,116500.0,116490.0,0.19729756]
[1755913965772,1.55683,116500.0,116490.0,0.19729756]
[1755913965975,1.55683,116500.0,116490.0,0.28063756]
[1755913966174,1.55683,116500.0,116490.0,0.35125756]
[1755913966175,1.30723,116500.0,116490.0,0.35125756]
[1755913967986,1.30423,116500.0,116490.0,0.35125756]
[1755913968188,1.30523,116500.0,116490.0,0.35125756]
[1755913968492,1.30423,116500.0,116490.0,0.35125756]
[1755913968783,1.23911,116500.0,116490.0,0.35125756]
[1755913968990,1.30423,116500.0,116490.0,0.45908998]
[1755913969982,0.94243,116500.0,116490.0,0.81990508]
[1755913970382,0.94243,116500.0,116490.0,0.45910508]
[1755913970584,0.94243,116500.0,116490.0,0.37576508]
[1755913970783,1.30323,116500.0,116490.0,0.37576508]
[1755913971084,0.94243,116500.0,116490.0,0.45910508]
[1755913971589,0.94343,116500.0,116490.0,0.44626532]
[1755913971901,1.30423,116500.0,116490.0,0.44626532]
[1755913972185,1.61738497,116500.0,116490.0,0.19370532]
[1755913973890,1.30423,116500.0,116490.0,0.19370532]
[1755913974090,1.61738497,116500.0,116490.0,0.19370532]
[1755913974389,1.30423,116500.0,116490.0,0.44626532]
[1755913975394,1.30423,116500.0,116490.0,0.3384329]
[1755913975690,1.30423,116500.0,116490.0,0.65158787]
[1755913975899,1.30423,116500.0,116490.0,0.4927043]
[1755913976194,1.30323,116500.0,116490.0,0.4927043]
[1755913976686,1.30323,116500.0,116490.0,0.3384329]
[1755913976885,0.94243,116500.0,116490.0,0.3384329]
[1755913977580,0.94243,116500.0,116490.0,0.65158787]
[1755913977784,0.94243,116500.0,116490.0,1.01238787]
[1755913977992,0.94143,116500.0,116490.0,1.01238787]